[Event "DVM U12 2021-22"]
[Site "Naumburg"]
[Date "2022.03.27"]
[Round "4"]
[White "Marinin, Georgii"]
[Black "Xue, Luka"]
[Result "0-1"]
[ECO "C11"]
[WhiteElo "1293"]
[BlackElo "1610"]
[Annotator "NA"]
[PlyCount "66"]
[EventDate "2022.03.25"]
[EventType "team-tourn"]
[EventRounds "7"]
[EventCountry "GER"]
[SourceTitle "playchess.com"]
[Source "ChessBase"]
[SourceQuality "1"]
[TimeControl "40/5400+30:1800+30"]

1. e4 {[%emt 0:00:01]} e6 {[%emt 0:00:09]} 2. d4 {[%emt 0:00:06]} d5 {[%emt 0:00:03]} 3. Nc3 {[%emt 0:00:15]} Nf6 {[%emt 0:00:06]} 4. Bg5 {[%emt 0:00:04]} dxe4 {[%emt 0:00:15]} 5. Nxe4 {[%emt 0:00:28]} Be7 {[%emt 0:00:15]} 6. Nxf6+ {[%emt 0:00:08]} gxf6 {[%emt 0:01:06]} 7. Be3 {[%emt 0:00:15]} a6 {[%emt 0:00:27]} 8. c3 {[%emt 0:00:13]} Nd7 {[%emt 0:02:23]} 9. Nf3 {[%emt 0:00:14]} b6 {[%emt 0:03:52]} 10. Bd3 {[%emt 0:02:39]} Bb7 {[%emt 0:00:49]} 11. h4 {[%emt 0:02:30]} f5 {[%emt 0:05:09]} 12. h5 {[%emt 0:00:55]} Rg8 {[%emt 0:01:48]} 13. Rg1 {[%emt 0:00:20]} Nf6 {[%emt 0:01:24]} 14. h6 {[%emt 0:01:35]} Qd5 {[%emt 0:12:53]} 15. c4 {[%emt 0:11:25]} Qd6 {[%emt 0:03:42]} 16. a3 {[%emt 0:08:15]} Rd8 {[%emt 0:05:54]} 17. g3 {[%emt 0:07:58]} Ng4 {[%emt 0:17:04]} 18. Qe2 {[%emt 0:06:35]} Nxe3 {[%emt 0:03:53]} 19. fxe3 {[%emt 0:00:15]} Rxg3 {[%emt 0:00:50]} 20. Rf1 {[%emt 0:00:37]} Bxf3 {[%emt 0:04:50]} 21. Rxf3 {[%emt 0:00:13]} Rg1+ {[%emt 0:00:29]} 22. Rf1 {[%emt 0:00:23]} Qg3+ {[%emt 0:00:40]} 23. Kd2 {[%emt 0:00:09]} Rg2 {[%emt 0:00:35]} 24. Qxg2 {[%emt 0:01:36]} Qxg2+ {[%emt 0:00:45]} 25. Kc3 {[%emt 0:00:01]} c5 {[%emt 0:00:53]} 26. Rg1 {[%emt 0:00:27]} Qh3 {[%emt 0:03:20]} 27. Rg8+ {[%emt 0:00:58]} Kd7 {[%emt 0:00:55]} 28. Rxd8+ Kxd8 {[%emt 0:00:22]} 29. Re1 {[%emt 0:00:22]} Qxh6 {[%emt 0:01:35]} 30. d5 {[%emt 0:00:17]} Bf6+ {[%emt 0:00:10]} 31. Kb3 {[%emt 0:00:06]} exd5 {[%emt 0:00:48]} 32. Bxf5 {[%emt 0:00:08]} dxc4+ {[%emt 0:01:10]} 33. Kxc4 {[%emt 0:00:04]} Qh4+ {[%emt 0:00:11]} 0-1

[Event "DVM U12 2021-22"]
[Site "Naumburg"]
[Date "2022.03.27"]
[Round "4"]
[White "Cwiklik, Julian"]
[Black "Aaron Joel N"]
[Result "1-0"]
[ECO "C54"]
[WhiteElo "1255"]
[BlackElo "1197"]
[Annotator "NA"]
[PlyCount "83"]
[EventDate "2022.03.25"]
[EventType "team-tourn"]
[EventRounds "7"]
[EventCountry "GER"]
[SourceTitle "playchess.com"]
[Source "ChessBase"]
[SourceQuality "1"]
[TimeControl "40/5400+30:1800+30"]

1. e4 {[%emt 0:00:01]} e5 {[%emt 0:00:11]} 2. Nf3 {[%emt 0:00:05]} Nc6 {[%emt 0:00:10]} 3. Bc4 {[%emt 0:00:07]} Bc5 {[%emt 0:00:05]} 4. c3 {[%emt 0:00:08]} Nf6 {[%emt 0:00:10]} 5. d4 {[%emt 0:00:06]} exd4 {[%emt 0:00:06]} 6. e5 {[%emt 0:00:04]} d5 {[%emt 0:00:53]} 7. Bb5 {[%emt 0:00:00]} Ne4 {[%emt 0:00:00]} 8. cxd4 {[%emt 0:00:00]} Bb4+ {[%emt 0:00:24]} 9. Bd2 {[%emt 0:00:00]} Bxd2+ {[%emt 0:00:32]} 10. Nbxd2 {[%emt 0:00:06]} Bg4 {[%emt 0:00:31]} 11. Qc2 {[%emt 0:03:20]} Qd7 {[%emt 0:01:42]} 12. Rc1 {[%emt 0:01:40]} Nxd2 {[%emt 0:01:46]} 13. Nxd2 {[%emt 0:00:23]} O-O {[%emt 0:00:55]} 14. Bxc6 {[%emt 0:01:46]} bxc6 {[%emt 0:00:21]} 15. h3 {[%emt 0:00:54]} Bf5 {[%emt 0:00:45]} 16. Qxc6 {[%emt 0:00:48]} Qxc6 {[%emt 0:00:33]} 17. Rxc6 {[%emt 0:00:05]} Rfc8 {[%emt 0:00:20]} 18. O-O {[%emt 0:01:04]} Rab8 {[%emt 0:00:15]} 19. Nb3 {[%emt 0:03:29]} a5 {[%emt 0:00:39]} 20. g4 {[%emt 0:03:49]} Be6 {[%emt 0:00:31]} 21. Ra6 {[%emt 0:01:09]} Rb5 {[%emt 0:01:40]} 22. Nc5 {[%emt 0:03:39]} Rxb2 {[%emt 0:02:54]} 23. Rxa5 {[%emt 0:00:30]} Rd2 {[%emt 0:00:38]} 24. Nb3 {[%emt 0:02:50]} Rd3 {[%emt 0:01:06]} 25. Kg2 {[%emt 0:02:08]} h5 {[%emt 0:01:50]} 26. f3 {[%emt 0:03:45]} h4 {[%emt 0:02:39]} 27. f4 {[%emt 0:01:18]} g6 {[%emt 0:01:00]} 28. Rf3 {[%emt 0:02:45]} Rd1 {[%emt 0:01:29]} 29. f5 {[%emt 0:02:19]} gxf5 {[%emt 0:01:03]} 30. gxf5 {[%emt 0:00:20]} Bd7 {[%emt 0:00:32]} 31. Rf4 {[%emt 0:01:24]} Rd3 {[%emt 0:00:51]} 32. Nc5 {[%emt 0:01:14]} Rd2+ {[%emt 0:01:59]} 33. Kf3 {[%emt 0:02:28]} Bc6 {[%emt 0:02:20]} 34. Rg4+ {[%emt 0:01:18]} Kf8 {[%emt 0:00:30]} 35. Rxh4 {[%emt 0:00:30]} Ke7 {[%emt 0:00:31]} 36. f6+ {[%emt 0:00:55]} Kd8 {[%emt 0:01:01]} 37. Rh8+ {[%emt 0:00:17]} Be8 {[%emt 0:00:13]} 38. e6 {[%emt 0:03:29]} fxe6 {[%emt 0:02:59]} 39. f7 {[%emt 0:01:27]} c6 {[%emt 0:01:03]} 40. fxe8=Q+ Kc7 41. Qd7+ {[%emt 0:32:09]} Kb6 {[%emt 0:31:04]} 42. Qa7# 1-0

[Event "DVM U12 2021-22"]
[Site "Naumburg"]
[Date "2022.03.27"]
[Round "4"]
[White "Zimmer, Tim"]
[Black "Smith, Tobias"]
[Result "1-0"]
[ECO "B27"]
[WhiteElo "1170"]
[BlackElo "1571"]
[Annotator "NA"]
[PlyCount "73"]
[EventDate "2022.03.25"]
[EventType "team-tourn"]
[EventRounds "7"]
[EventCountry "GER"]
[SourceTitle "playchess.com"]
[Source "ChessBase"]
[SourceQuality "1"]
[TimeControl "40/5400+30:1800+30"]

1. e4 {[%emt 0:00:02]} c5 {[%emt 0:00:05]} 2. Nf3 {[%emt 0:00:14]} g6 {[%emt 0:00:34]} 3. d4 {[%emt 0:00:39]} cxd4 {[%emt 0:00:10]} 4. Qxd4 Nf6 {[%emt 0:01:28]} 5. e5 {[%emt 0:03:29]} Nc6 {[%emt 0:02:00]} 6. Qd1 {[%emt 0:06:11]} Nxe5 {[%emt 0:03:40]} 7. Bf4 {[%emt 0:06:37]} Nxf3+ {[%emt 0:01:20]} 8. Qxf3 {[%emt 0:00:32]} Bg7 {[%emt 0:08:31]} 9. Bc4 {[%emt 0:03:50]} O-O {[%emt 0:05:50]} 10. Nc3 {[%emt 0:05:32]} Qb6 {[%emt 0:08:50]} 11. Nb5 {[%emt 0:16:05]} d6 {[%emt 0:11:48]} 12. O-O {[%emt 0:07:20]} Bf5 13. Rfe1 {[%emt 0:04:27]} Rac8 {[%emt 0:04:08]} 14. Bf1 {[%emt 0:03:40]} a6 {[%emt 0:04:18]} 15. Be3 {[%emt 0:02:14]} Qa5 {[%emt 0:02:24]} 16. Nd4 {[%emt 0:02:19]} Be4 {[%emt 0:03:17]} 17. Qd1 {[%emt 0:03:11]} Qa4 {[%emt 0:06:36]} 18. b3 {[%emt 0:07:11]} Qd7 {[%emt 0:01:24]} 19. Bg5 {[%emt 0:04:30]} Bf5 {[%emt 0:06:40]} 20. Rc1 {[%emt 0:02:24]} Ne4 {[%emt 0:02:30]} 21. Bh4 {[%emt 0:03:57]} g5 {[%emt 0:04:27]} 22. Nxf5 {[%emt 0:02:35]} Qxf5 {[%emt 0:00:27]} 23. Bd3 {[%emt 0:00:27]} gxh4 {[%emt 0:07:32]} 24. Rxe4 {[%emt 0:00:57]} Qf6 {[%emt 0:01:27]} 25. Qh5 {[%emt 0:02:03]} Qh6 {[%emt 0:02:37]} 26. Qxh6 {[%emt 0:03:19]} Bxh6 {[%emt 0:00:05]} 27. Rce1 {[%emt 0:00:05]} e5 {[%emt 0:03:58]} 28. Rxh4 {[%emt 0:00:11]} Kg7 {[%emt 0:00:17]} 29. Bf5 {[%emt 0:02:03]} Rc5 {[%emt 0:01:11]} 30. Rd1 {[%emt 0:00:49]} Rc6 {[%emt 0:02:10]} 31. Rd3 {[%emt 0:01:09]} Bg5 {[%emt 0:01:53]} 32. Rg4 {[%emt 0:01:53]} Rxc2 {[%emt 0:03:44]} 33. Rxg5+ {[%emt 0:02:37]} Kf6 {[%emt 0:01:04]} 34. Rxd6+ {[%emt 0:00:39]} Kxg5 {[%emt 0:00:06]} 35. Bxc2 {[%emt 0:00:11]} Rc8 {[%emt 0:00:08]} 36. Rd2 {[%emt 0:00:05]} Kf4 {[%emt 0:00:37]} 37. Kf1 1-0

[Event "DVM U12 2021-22"]
[Site "Naumburg"]
[Date "2022.03.27"]
[Round "4"]
[White "Sato, Kai Nathan"]
[Black "Uhl, Henry"]
[Result "1-0"]
[ECO "B38"]
[WhiteElo "1151"]
[BlackElo "1301"]
[Annotator "NA"]
[PlyCount "79"]
[EventDate "2022.03.25"]
[EventType "team-tourn"]
[EventRounds "7"]
[EventCountry "GER"]
[SourceTitle "playchess.com"]
[Source "ChessBase"]
[SourceQuality "1"]
[TimeControl "40/5400+30:1800+30"]

1. e4 {[%emt 0:00:01]} c5 {[%emt 0:00:10]} 2. Nf3 {[%emt 0:00:02]} Nc6 {[%emt 0:00:25]} 3. d4 {[%emt 0:00:05]} cxd4 {[%emt 0:00:11]} 4. Nxd4 {[%emt 0:00:06]} g6 {[%emt 0:00:31]} 5. c4 {[%emt 0:00:10]} Bg7 {[%emt 0:00:51]} 6. Be3 {[%emt 0:00:07]} Nf6 {[%emt 0:01:27]} 7. Nc3 {[%emt 0:00:06]} O-O {[%emt 0:01:15]} 8. Be2 {[%emt 0:00:04]} d6 {[%emt 0:01:33]} 9. O-O {[%emt 0:00:08]} Bd7 {[%emt 0:01:03]} 10. f3 {[%emt 0:00:31]} Rc8 {[%emt 0:01:23]} 11. Qd2 {[%emt 0:00:43]} Ne5 {[%emt 0:01:05]} 12. b3 {[%emt 0:00:26]} Qa5 {[%emt 0:01:49]} 13. f4 {[%emt 0:05:07]} Nc6 {[%emt 0:01:24]} 14. Qc2 {[%emt 0:02:12]} Ng4 {[%emt 0:07:05]} 15. Nxc6 {[%emt 0:08:18]} bxc6 {[%emt 0:01:01]} 16. Bxg4 {[%emt 0:04:39]} Bxg4 {[%emt 0:00:21]} 17. Bd2 {[%emt 0:03:14]} Qb6+ {[%emt 0:02:44]} 18. Kh1 {[%emt 0:01:48]} Rfd8 {[%emt 0:01:08]} 19. h3 {[%emt 0:01:06]} Bd7 {[%emt 0:01:42]} 20. Rf3 {[%emt 0:01:04]} f5 {[%emt 0:01:12]} 21. Re1 {[%emt 0:01:27]} e5 {[%emt 0:03:17]} 22. Na4 {[%emt 0:01:32]} Qb7 {[%emt 0:01:18]} 23. c5 {[%emt 0:02:43]} d5 {[%emt 0:01:35]} 24. exd5 {[%emt 0:01:17]} e4 {[%emt 0:01:33]} 25. dxc6 {[%emt 0:01:48]} Bxc6 {[%emt 0:00:42]} 26. Rf2 {[%emt 0:02:20]} Bxa4 {[%emt 0:01:54]} 27. bxa4 {[%emt 0:01:16]} Rd5 {[%emt 0:01:15]} 28. Be3 {[%emt 0:02:38]} Bf6 {[%emt 0:02:45]} 29. Rb1 {[%emt 0:01:45]} Qc6 {[%emt 0:01:15]} 30. Qc4 {[%emt 0:01:15]} Kg7 {[%emt 0:01:00]} 31. Rb5 {[%emt 0:01:02]} Rd3 {[%emt 0:01:16]} 32. Rb3 {[%emt 0:02:25]} Rcd8 {[%emt 0:01:17]} 33. Rf1 {[%emt 0:05:19]} Rxb3 {[%emt 0:01:15]} 34. axb3 {[%emt 0:00:37]} Rd3 {[%emt 0:00:40]} 35. Re1 {[%emt 0:01:02]} Bh4 {[%emt 0:00:29]} 36. Bd4+ {[%emt 0:02:27]} Kf8 {[%emt 0:00:46]} 37. Re3 {[%emt 0:01:10]} Rd2 {[%emt 0:00:50]} 38. Qb4 {[%emt 0:01:41]} Bf2 {[%emt 0:00:46]} 39. Qxd2 {[%emt 0:00:28]} Bxe3 {[%emt 0:00:13]} 40. Bxe3 {[%emt 0:01:00]} 1-0

[Event "DVM U12 2021-22"]
[Site "Naumburg"]
[Date "2022.03.27"]
[Round "4"]
[White "Roos Nazario, Valentin"]
[Black "Graham, David B"]
[Result "1/2-1/2"]
[ECO "B78"]
[WhiteElo "1140"]
[BlackElo "2128"]
[Annotator "ChessBase"]
[PlyCount "116"]
[EventDate "2022.03.25"]
[EventType "team-tourn"]
[EventRounds "7"]
[EventCountry "GER"]
[SourceTitle "playchess.com"]
[Source "ChessBase"]
[SourceQuality "1"]
[TimeControl "40/5400+30:1800+30"]

1. e4 {[%emt 0:00:03]} c5 {[%emt 0:00:06]} 2. Nf3 {[%emt 0:00:29]} d6 {[%emt 0:00:03]} 3. d4 {[%emt 0:00:24]} cxd4 {[%emt 0:00:05]} 4. Nxd4 {[%emt 0:00:08]} Nf6 {[%emt 0:00:03]} 5. Nc3 {[%emt 0:00:33]} g6 {[%emt 0:00:04]} 6. Be3 {[%emt 0:00:33]} Bg7 {[%emt 0:00:05]} 7. f3 {[%emt 0:00:46]} Nc6 {[%emt 0:00:02]} 8. Qd2 {[%emt 0:00:55]} O-O {[%emt 0:00:05]} 9. Bc4 {[%emt 0:00:10]} Bd7 {[%emt 0:00:20]} 10. O-O-O {[%emt 0:00:12]} Rc8 {[%emt 0:00:04]} 11. Bb3 {[%emt 0:00:06]} Nxd4 {[%emt 0:00:04]} 12. Bxd4 {[%emt 0:00:37]} b5 {[%emt 0:00:04]} 13. Nd5 {[%emt 0:08:28]} Nxd5 {[%emt 0:22:40]} 14. Bxd5 {[%emt 0:03:14]} Bxd4 {[%emt 0:01:36]} 15. Qxd4 {[%emt 0:00:23]} a5 {[%emt 0:00:26]} 16. a3 {[%emt 0:00:22]} Qc7 {[%emt 0:03:27]} 17. c3 {[%emt 0:04:09]} Rb8 {[%emt 0:01:26]} 18. b4 {[%emt 0:03:14]} axb4 {[%emt 0:01:31]} 19. axb4 {[%emt 0:01:08]} Bc6 {[%emt 0:05:33]} 20. Kb2 {[%emt 0:01:03]} Bxd5 {[%emt 0:00:46]} 21. exd5 {[%emt 0:00:48]} Rfc8 {[%emt 0:05:36]} 22. g4 {[%emt 0:01:31]} Qc4 {[%emt 0:04:15]} 23. Rhe1 {[%emt 0:00:15]} Rb7 {[%emt 0:01:54]} 24. Qxc4 {[%emt 0:07:29]} Rxc4 {[%emt 0:01:05]} 25. Ra1 {[%emt 0:00:24]} Rbc7 {[%emt 0:01:00]} 26. Re3 {[%emt 0:00:10]} Rb7 {[%emt 0:05:19]} 27. Ra8+ {[%emt 0:00:47]} Kg7 {[%emt 0:00:28]} 28. Re8 {[%emt 0:00:30]} Rcc7 {[%emt 0:00:20]} 29. Re1 {[%emt 0:00:45]} Ra7 {[%emt 0:03:01]} 30. Rb8 {[%emt 0:00:18]} Rcb7 {[%emt 0:04:35]} 31. Rxb7 {[%emt 0:00:27]} Rxb7 {[%emt 0:00:05]} 32. g5 {[%emt 0:00:14]} Ra7 {[%emt 0:17:49]} 33. Kb3 {[%emt 0:01:37]} Rc7 {[%emt 0:00:35]} 34. Re4 {[%emt 0:00:12]} f5 {[%emt 0:00:44]} 35. Rd4 {[%emt 0:00:05]} Kf7 {[%emt 0:00:28]} 36. c4 {[%emt 0:00:08]} e5 {[%emt 0:01:04]} 37. dxe6+ {[%emt 0:00:11]} Kxe6 {[%emt 0:00:11]} 38. cxb5 {[%emt 0:00:11]} d5 {[%emt 0:01:12]} 39. f4 {[%emt 0:00:28]} Rb7 {[%emt 0:02:34]} 40. b6 {[%emt 0:01:19]} Rxb6 {[%emt 0:02:29]} 41. Ka4 {[%emt 0:30:25]} Kd6 {[%emt 0:31:41]} 42. Ka5 {[%emt 0:00:46]} Rb8 {[%emt 0:05:42]} 43. h3 {[%emt 0:03:48]} Kc6 {[%emt 0:00:49]} 44. Ka4 {[%emt 0:03:47]} Ra8+ {[%emt 0:05:50]} 45. Kb3 {[%emt 0:00:08]} Re8 {[%emt 0:00:28]} 46. Rd3 {[%emt 0:01:17]} Re4 {[%emt 0:00:48]} 47. Rc3+ {[%emt 0:00:29]} Kb6 {[%emt 0:03:39]} 48. Rc5 {[%emt 0:01:41]} d4 {[%emt 0:00:00]} 49. Kc4 {[%emt 0:00:00]} d3+ {[%emt 0:00:00]} 50. Kxd3 {[%emt 0:00:00]} Rxf4 {[%emt 0:00:00]} 51. Ke3 {[%emt 0:00:00]} Rxb4 {[%emt 0:00:00]} 52. Rc3 {[%emt 0:00:00]} Kb5 {[%emt 0:00:00]} 53. Kf3 {[%emt 0:00:00]} Rc4 {[%emt 0:00:00]} 54. Rd3 {[%emt 0:00:00]} Kc5 {[%emt 0:00:00]} 55. Rd7 {[%emt 0:00:00]} Rh4 {[%emt 0:00:00]} 56. Kg3 {[%emt 0:00:00]} Rh5 {[%emt 0:00:00]} 57. h4 {[%emt 0:00:00]} Kc6 {[%emt 0:00:00]} 58. Rd2 {[%emt 0:00:00]} Kc7 {[%emt 0:00:00]} 1/2-1/2

[Event "DVM U12 2021-22"]
[Site "Naumburg"]
[Date "2022.03.27"]
[Round "4"]
[White "Detjen, Mattes"]
[Black "Meusel, Theodor"]
[Result "0-1"]
[ECO "C02"]
[WhiteElo "1124"]
[BlackElo "1258"]
[Annotator "NA"]
[PlyCount "56"]
[EventDate "2022.03.25"]
[EventType "team-tourn"]
[EventRounds "7"]
[EventCountry "GER"]
[SourceTitle "playchess.com"]
[Source "ChessBase"]
[SourceQuality "1"]
[TimeControl "40/5400+30:1800+30"]

1. e4 {[%emt 0:00:03]} e6 {[%emt 0:00:05]} 2. d4 {[%emt 0:00:08]} d5 {[%emt 0:00:06]} 3. e5 {[%emt 0:00:09]} c5 {[%emt 0:00:01]} 4. c3 {[%emt 0:00:11]} Nc6 {[%emt 0:00:06]} 5. Nf3 {[%emt 0:00:33]} Qb6 {[%emt 0:00:08]} 6. Be2 {[%emt 0:00:33]} Bd7 {[%emt 0:01:36]} 7. O-O {[%emt 0:01:33]} Nh6 {[%emt 0:05:18]} 8. Na3 {[%emt 0:04:40]} Nf5 {[%emt 0:05:00]} 9. Nc2 {[%emt 0:00:22]} Be7 {[%emt 0:05:24]} 10. a3 {[%emt 0:03:05]} c4 {[%emt 0:03:18]} 11. Nb4 {[%emt 0:01:33]} Na5 {[%emt 0:06:07]} 12. Nd2 {[%emt 0:03:01]} Bg5 {[%emt 0:03:35]} 13. f4 {[%emt 0:04:26]} Ne3 {[%emt 0:01:53]} 14. Qe1 {[%emt 0:04:39]} Nxf1 {[%emt 0:00:58]} 15. Qxf1 {[%emt 0:00:08]} Be7 {[%emt 0:03:52]} 16. Bg4 {[%emt 0:03:31]} Nc6 {[%emt 0:03:59]} 17. b3 {[%emt 0:01:38]} Nxb4 {[%emt 0:04:23]} 18. axb4 {[%emt 0:00:54]} Bxb4 {[%emt 0:02:42]} 19. cxb4 {[%emt 0:00:25]} Qxd4+ {[%emt 0:00:14]} 20. Kh1 {[%emt 0:00:38]} Qxa1 {[%emt 0:00:39]} 21. bxc4 {[%emt 0:08:25]} Rc8 {[%emt 0:04:51]} 22. Nb3 {[%emt 0:02:12]} Qc3 {[%emt 0:01:32]} 23. Bd1 {[%emt 0:02:19]} Qxc4 {[%emt 0:01:14]} 24. Qe1 {[%emt 0:04:46]} Ba4 {[%emt 0:01:24]} 25. Nc5 {[%emt 0:04:37]} Bxd1 {[%emt 0:00:18]} 26. Qxd1 {[%emt 0:00:33]} b6 {[%emt 0:00:13]} 27. Nd3 {[%emt 0:00:15]} Qc2 {[%emt 0:00:44]} 28. Qf1 {[%emt 0:00:51]} Rc3 {[%emt 0:00:46]} 0-1

[Event "DVM U12 2021-22"]
[Site "Naumburg"]
[Date "2022.03.27"]
[Round "4"]
[White "Goldschmidt, Jakob"]
[Black "Barthel, Jacob"]
[Result "0-1"]
[ECO "D00"]
[WhiteElo "1081"]
[BlackElo "1321"]
[Annotator "NA"]
[PlyCount "106"]
[EventDate "2022.03.25"]
[EventType "team-tourn"]
[EventRounds "7"]
[EventCountry "GER"]
[SourceTitle "playchess.com"]
[Source "ChessBase"]
[SourceQuality "1"]
[TimeControl "40/5400+30:1800+30"]

1. d4 {[%emt 0:00:02]} d5 {[%emt 0:00:05]} 2. c3 {[%emt 0:00:06]} Nf6 {[%emt 0:00:11]} 3. e3 {[%emt 0:00:07]} Bf5 {[%emt 0:00:16]} 4. f4 {[%emt 0:00:10]} e6 {[%emt 0:00:49]} 5. Bd3 {[%emt 0:00:07]} Bxd3 {[%emt 0:01:20]} 6. Qxd3 {[%emt 0:00:07]} Nbd7 {[%emt 0:00:36]} 7. Nf3 {[%emt 0:00:14]} Bd6 {[%emt 0:00:16]} 8. O-O {[%emt 0:00:11]} O-O {[%emt 0:00:21]} 9. Ne5 {[%emt 0:00:12]} c5 {[%emt 0:07:42]} 10. Nd2 {[%emt 0:00:48]} Rc8 {[%emt 0:12:23]} 11. Ndf3 {[%emt 0:01:27]} Ne4 {[%emt 0:05:07]} 12. Nd2 {[%emt 0:05:16]} Nxd2 {[%emt 0:06:17]} 13. Bxd2 {[%emt 0:00:52]} f6 {[%emt 0:00:37]} 14. Ng4 {[%emt 0:05:19]} Qe7 {[%emt 0:06:40]} 15. Qe2 {[%emt 0:03:10]} Rfe8 {[%emt 0:02:14]} 16. Qf2 {[%emt 0:03:16]} h5 {[%emt 0:05:05]} 17. Ne5 {[%emt 0:05:11]} fxe5 {[%emt 0:02:10]} 18. fxe5 {[%emt 0:00:12]} Bc7 {[%emt 0:01:30]} 19. Qg3 {[%emt 0:01:01]} Rf8 {[%emt 0:16:10]} 20. Qg6 {[%emt 0:02:57]} Rxf1+ {[%emt 0:03:32]} 21. Rxf1 {[%emt 0:00:10]} Nf8 {[%emt 0:00:45]} 22. Qxh5 {[%emt 0:01:22]} Qe8 {[%emt 0:03:43]} 23. Qh3 {[%emt 0:03:50]} Rd8 {[%emt 0:07:39]} 24. Rf4 {[%emt 0:05:47]} g6 {[%emt 0:10:41]} 25. Rh4 {[%emt 0:03:47]} Kf7 {[%emt 0:02:47]} 26. e4 {[%emt 0:08:08]} Ke7 {[%emt 0:02:27]} 27. Rh7+ {[%emt 0:00:57]} Nxh7 {[%emt 0:00:21]} 28. Qxh7+ {[%emt 0:00:08]} Qf7 {[%emt 0:00:19]} 29. Bg5+ {[%emt 0:00:13]} Ke8 {[%emt 0:00:16]} 30. Qxf7+ {[%emt 0:03:01]} Kxf7 {[%emt 0:00:07]} 31. Bxd8 {[%emt 0:00:15]} Bxd8 {[%emt 0:00:04]} 32. exd5 {[%emt 0:01:35]} exd5 {[%emt 0:00:07]} 33. Kf2 {[%emt 0:00:52]} cxd4 {[%emt 0:00:50]} 34. cxd4 {[%emt 0:00:09]} Bb6 {[%emt 0:00:34]} 35. Ke3 {[%emt 0:00:13]} g5 {[%emt 0:01:51]} 36. Kd3 {[%emt 0:01:15]} a5 {[%emt 0:00:34]} 37. g3 {[%emt 0:01:49]} g4 {[%emt 0:01:18]} 38. Ke3 {[%emt 0:02:16]} Ke6 {[%emt 0:00:54]} 39. Kd3 {[%emt 0:00:26]} Ba7 {[%emt 0:00:36]} 40. Ke3 {[%emt 0:00:41]} a4 {[%emt 0:00:39]} 41. a3 {[%emt 0:30:13]} b5 {[%emt 0:04:28]} 42. Kd3 {[%emt 0:00:00]} Kf5 {[%emt 0:01:41]} 43. Ke3 {[%emt 0:00:00]} Bb8 {[%emt 0:01:54]} 44. h4 {[%emt 0:00:00]} gxh3 45. Kf3 Ba7 {[%emt 0:09:14]} 46. g4+ {[%emt 0:00:00]} Ke6 {[%emt 0:01:08]} 47. Kg3 {[%emt 0:00:00]} Bxd4 {[%emt 0:00:23]} 48. Kxh3 {[%emt 0:00:00]} Bxe5 {[%emt 0:00:14]} 49. Kg2 {[%emt 0:00:00]} Bxb2 {[%emt 0:00:09]} 50. Kf3 {[%emt 0:00:00]} Bxa3 {[%emt 0:00:17]} 51. Kf4 {[%emt 0:00:00]} Bc1+ {[%emt 0:00:16]} 52. Kf3 {[%emt 0:00:00]} a3 {[%emt 0:00:08]} 53. g5 {[%emt 0:00:00]} Bxg5 {[%emt 0:00:12]} 0-1

[Event "DVM U12 2021-22"]
[Site "Naumburg"]
[Date "2022.03.27"]
[Round "4"]
[White "Mende, Magnus"]
[Black "Savchenko, Maxim"]
[Result "0-1"]
[ECO "C50"]
[WhiteElo "737"]
[BlackElo "1141"]
[Annotator "NA"]
[PlyCount "124"]
[EventDate "2022.03.25"]
[EventType "team-tourn"]
[EventRounds "7"]
[EventCountry "GER"]
[SourceTitle "playchess.com"]
[Source "ChessBase"]
[SourceQuality "1"]
[TimeControl "40/5400+30:1800+30"]

1. e4 {[%emt 0:00:02]} e5 {[%emt 0:00:04]} 2. Nf3 {[%emt 0:00:11]} Nc6 {[%emt 0:00:02]} 3. Bc4 {[%emt 0:00:23]} Nf6 {[%emt 0:00:27]} 4. Nc3 {[%emt 0:00:16]} Bc5 {[%emt 0:01:14]} 5. O-O {[%emt 0:00:22]} O-O {[%emt 0:00:07]} 6. d3 {[%emt 0:00:11]} d6 {[%emt 0:01:03]} 7. h3 h6 8. Be3 {[%emt 0:01:08]} Bb6 {[%emt 0:00:36]} 9. Nd5 {[%emt 0:01:34]} Re8 {[%emt 0:00:37]} 10. Qd2 {[%emt 0:01:06]} Bxe3 {[%emt 0:26:52]} 11. Qxe3 {[%emt 0:00:21]} a6 {[%emt 0:00:19]} 12. a3 {[%emt 0:00:51]} b5 {[%emt 0:02:23]} 13. Nxf6+ {[%emt 0:00:51]} Qxf6 {[%emt 0:00:08]} 14. Bd5 {[%emt 0:00:18]} Bd7 {[%emt 0:18:17]} 15. c3 {[%emt 0:00:40]} Qf4 {[%emt 0:00:54]} 16. Bxc6 {[%emt 0:01:08]} Qxe3 {[%emt 0:02:00]} 17. fxe3 {[%emt 0:00:17]} Bxc6 {[%emt 0:00:07]} 18. Rfe1 {[%emt 0:00:28]} f6 {[%emt 0:00:51]} 19. Nd2 {[%emt 0:00:19]} Bb7 {[%emt 0:00:18]} 20. d4 {[%emt 0:00:13]} c6 {[%emt 0:00:34]} 21. b4 {[%emt 0:00:37]} Rad8 {[%emt 0:01:23]} 22. Re2 {[%emt 0:01:46]} Rc8 {[%emt 0:00:40]} 23. Rc1 {[%emt 0:01:01]} c5 {[%emt 0:00:59]} 24. Nb3 {[%emt 0:00:58]} Bxe4 {[%emt 0:02:51]} 25. dxc5 {[%emt 0:03:05]} dxc5 {[%emt 0:00:51]} 26. Nxc5 {[%emt 0:00:08]} Rxc5 {[%emt 0:03:18]} 27. bxc5 {[%emt 0:00:38]} Rc8 {[%emt 0:00:11]} 28. Rb2 {[%emt 0:02:10]} Rxc5 {[%emt 0:00:52]} 29. Rb4 {[%emt 0:00:36]} Bd3 {[%emt 0:18:04]} 30. a4 {[%emt 0:00:30]} a5 {[%emt 0:10:13]} 31. Rg4 {[%emt 0:01:20]} e4 {[%emt 0:00:18]} 32. Kf2 {[%emt 0:01:53]} f5 {[%emt 0:01:58]} 33. Rg6 {[%emt 0:00:54]} bxa4 {[%emt 0:00:47]} 34. Ke1 {[%emt 0:00:43]} a3 {[%emt 0:00:16]} 35. Kd2 a2 {[%emt 0:00:23]} 36. Ra1 {[%emt 0:00:24]} Bc4 {[%emt 0:01:51]} 37. Rb6 {[%emt 0:00:12]} Rd5+ {[%emt 0:00:33]} 38. Kc2 {[%emt 0:00:16]} Bd3+ {[%emt 0:00:38]} 39. Kd2 {[%emt 0:00:16]} Bb1+ {[%emt 0:01:07]} 40. Ke2 {[%emt 0:00:00]} Rd3 {[%emt 0:00:00]} 41. Rb8+ {[%emt 0:30:18]} Kh7 {[%emt 0:29:34]} 42. Rb3 {[%emt 0:00:10]} a4 {[%emt 0:00:47]} 43. Ra3 {[%emt 0:00:33]} Kg6 {[%emt 0:00:37]} 44. g4 {[%emt 0:00:08]} fxg4 {[%emt 0:00:37]} 45. hxg4 {[%emt 0:00:07]} Kg5 {[%emt 0:00:10]} 46. Rxa4 {[%emt 0:00:15]} Rxc3 {[%emt 0:00:31]} 47. Rxe4 {[%emt 0:00:24]} Bxe4 {[%emt 0:00:20]} 48. Rxa2 Rc2+ 49. Rxc2 {[%emt 0:01:10]} Bxc2 {[%emt 0:00:35]} 50. Kf3 {[%emt 0:00:06]} Bd1+ {[%emt 0:00:03]} 51. Kg3 {[%emt 0:00:22]} Bxg4 {[%emt 0:00:32]} 52. e4 {[%emt 0:00:26]} h5 {[%emt 0:00:33]} 53. e5 h4+ {[%emt 0:01:06]} 54. Kh2 {[%emt 0:01:48]} Be6 {[%emt 0:00:23]} 55. Kg2 {[%emt 0:00:28]} Kf4 {[%emt 0:00:02]} 56. Kh2 {[%emt 0:00:16]} g5 {[%emt 0:00:06]} 57. Kg2 {[%emt 0:00:25]} g4 {[%emt 0:00:16]} 58. Kh2 {[%emt 0:00:24]} Kxe5 {[%emt 0:00:51]} 59. Kg2 {[%emt 0:00:25]} g3 {[%emt 0:00:21]} 60. Kh1 {[%emt 0:00:25]} h3 {[%emt 0:00:12]} 61. Kg1 {[%emt 0:02:56]} h2+ {[%emt 0:00:23]} 62. Kh1 {[%emt 0:00:06]} Bd5# 0-1